fUSD/lending_fUSD_20250104
["ID","MTS","AMOUNT","RATE_DAILY","PERIOD"]
[347620045,1735963841089,-903.78,0.00010272,2]
[347620047,1735963841098,-737.74,0.00010272,2]
[347620049,1735963841108,-3150.98,0.00010272,2]
[347620051,1735963841118,-499.03,0.00010272,2]
[347620053,1735963841127,-514.39,0.00010273,2]
[347620055,1735963841136,-500.0,0.00010273,2]
[347620057,1735963841145,-500.0,0.00010273,2]
[347620059,1735963841155,-880.66,0.00010273,2]
[347620061,1735963841164,-763.69,0.00010273,2]
[347620063,1735963841174,-820.43,0.00010273,2]
[347620065,1735963841183,-1000.0,0.00010273,2]
[347620067,1735963841192,-668.54,0.00010273,2]
[347620068,1735963841202,-596.54,0.00010273,2]
[347620070,1735963841212,-1341.63,0.00010273,2]
[347620072,1735963841223,-154.19,0.00010274,2]
[347620074,1735963841233,-303.82,0.00010274,2]
[347620076,1735963841241,-152.85,0.00010274,2]
[347620078,1735963841251,-169.71,0.00010274,2]
[347620080,1735963841260,-284.19617539,0.00010274,2]
[347620243,1735963842738,-112.36382461,0.00010274,2]
[347620245,1735963842749,-979.07,0.00010274,2]
[347620247,1735963842758,-182.84,0.00010274,2]
[347620249,1735963842767,-436.9,0.00010274,2]
[347620251,1735963842776,-979.07,0.00010274,2]
[347620253,1735963842786,-150.0,0.00010274,2]
[347620255,1735963842794,-436.9,0.00010274,2]
[347620257,1735963842803,-150.0,0.00010274,2]
[347620259,1735963842813,-150.0,0.00010274,2]
[347620261,1735963842822,-182.84,0.00010274,2]
[347620263,1735963842831,-979.07,0.00010274,2]
[347620265,1735963842840,-436.9,0.00010274,2]
[347620283,1735963843005,-182.84,0.00010274,2]
[347620286,1735963843022,-150.0,0.00010274,2]
[347620288,1735963843031,-150.0,0.00010274,2]
[347620290,1735963843040,-150.0,0.00010274,2]
[347620292,1735963843050,-436.9,0.00010274,2]
[347620294,1735963843058,-182.84,0.00010274,2]
[347620296,1735963843067,-150.0,0.00010274,2]
[347620298,1735963843076,-979.07,0.00010274,2]
[347620300,1735963843086,-150.0,0.00010274,2]
[347620302,1735963843095,-979.07,0.00010274,2]
[347620304,1735963843104,-150.0,0.00010274,2]
[347620306,1735963843114,-182.84,0.00010274,2]
[347620308,1735963843123,-150.0,0.00010274,2]
[347620310,1735963843132,-436.9,0.00010274,2]
[347620312,1735963843141,-182.84,0.00010274,2]
[347620314,1735963843150,-979.07,0.00010274,2]
[347620316,1735963843160,-436.9,0.00010274,2]
[347620318,1735963843170,-150.0,0.00010274,2]
[347620320,1735963843179,-979.07,0.00010274,2]
[347620322,1735963843188,-150.0,0.00010274,2]
[347620324,1735963843197,-436.9,0.00010274,2]
[347620325,1735963843207,-182.84,0.00010274,2]
[347620327,1735963843217,-436.9,0.00010274,2]
[347620330,1735963843226,-908.64,0.00010274,2]
[347620332,1735963843236,-150.0,0.00010274,2]
[347620334,1735963843245,-182.84,0.00010274,2]
[347620335,1735963843254,-182.84,0.00010274,2]
[347620337,1735963843263,-150.0,0.00010274,2]
[347620340,1735963843273,-436.9,0.00010274,2]
[347620342,1735963843282,-436.9,0.00010274,2]
[347620344,1735963843292,-150.0,0.00010274,2]
[347620346,1735963843301,-182.84,0.00010274,2]
[347620348,1735963843311,-150.0,0.00010274,2]
[347620349,1735963843320,-182.84,0.00010274,2]
[347620352,1735963843329,-436.9,0.00010274,2]
[347620354,1735963843339,-182.84,0.00010274,2]
[347620356,1735963843348,-150.0,0.00010274,2]
[347620358,1735963843357,-436.9,0.00010274,2]
[347620360,1735963843367,-150.0,0.00010274,2]
[347620362,1735963843376,-182.84,0.00010274,2]
[347620364,1735963843386,-436.47,0.00010274,2]
[347620365,1735963843395,-182.84,0.00010274,2]
[347620367,1735963843404,-150.0,0.00010274,2]
[347620369,1735963843414,-150.0,0.00010274,2]
[347620371,1735963843423,-182.84,0.00010274,2]
[347620374,1735963843432,-182.84,0.00010274,2]
[347620376,1735963843442,-182.84,0.00010274,2]
[347620377,1735963843452,-181.67,0.00010274,2]
[347620379,1735963843462,-452.65,0.00010424,2]
[347620381,1735963843471,-429.5697054,0.000105,2]
[347620384,1735963843482,-687.4,0.00010544,2]
[347620385,1735963843491,-726.93,0.00010544,2]
[347620388,1735963843501,-500.0,0.00010544,2]
[347620390,1735963843510,-686.8,0.00010544,2]
[347620392,1735963843519,-867.37,0.00010544,2]
[347620393,1735963843528,-536.34,0.00010544,2]
[347620394,1735963843539,-500.0,0.00010544,2]
[347620395,1735963843549,-684.32,0.00010544,2]
[347620396,1735963843558,-500.0,0.00010544,2]
[347620397,1735963843567,-500.0,0.00010544,2]
[347620398,1735963843575,-500.0,0.00010545,2]
[347620399,1735963843585,-500.0,0.00010545,2]
[347620400,1735963843594,-500.0,0.00010545,2]
[347620401,1735963843603,-500.0,0.00010545,2]
[347620402,1735963843611,-500.0,0.00010545,2]
[347620403,1735963843625,-500.0,0.00010545,2]
[347620404,1735963843635,-500.0,0.00010545,2]
[347620406,1735963843644,-308.9735117,0.00010545,2]
[347620408,1735963843653,-2004.21,0.00010545,2]
[347620409,1735963843663,-500.0,0.00010545,2]
[347620412,1735963843672,-500.0,0.00010545,2]
[347620413,1735963843682,-500.0,0.00010545,2]
[347620415,1735963843693,-500.0,0.00010545,2]
[347620418,1735963843703,-500.0,0.00010545,2]
[347620420,1735963843716,-500.0,0.00010545,2]
[347620422,1735963843725,-500.0,0.00010545,2]
[347620424,1735963843734,-500.0,0.00010545,2]
[347620426,1735963843743,-1273.95,0.00010545,2]
[347620428,1735963843753,-500.0,0.00010545,2]
[347620430,1735963843762,-523.02,0.00010545,2]
[347620432,1735963843771,-500.0,0.00010545,2]
[347620434,1735963843780,-500.0,0.00010545,2]
[347620436,1735963843789,-500.0,0.00010545,2]
[347620438,1735963843799,-500.0,0.00010545,2]
[347620440,1735963843808,-500.0,0.00010545,2]
[347620442,1735963843816,-500.0,0.00010545,2]
[347620444,1735963843826,-500.0,0.00010545,2]
[347620446,1735963843835,-622.09,0.00010545,2]
[347620448,1735963843844,-500.0,0.00010545,2]
[347620450,1735963843852,-500.0,0.00010545,2]
[347620452,1735963843861,-500.0,0.00010545,2]
[347620454,1735963843870,-270.099824,0.00010545,2]
[347620456,1735963843879,-2083.77,0.00010545,2]
[347620458,1735963843888,-500.0,0.00010545,2]
[347620460,1735963843897,-500.0,0.00010545,2]
[347620462,1735963843907,-500.0,0.00010545,2]
[347620463,1735963843916,-500.0,0.00010545,2]
[347620465,1735963843926,-362.034631,0.00010545,2]
[347620467,1735963843935,-500.0,0.00010545,2]
[347620469,1735963843944,-500.0,0.00010545,2]
[347620471,1735963843954,-500.0,0.00010545,2]
[347620473,1735963843963,-500.0,0.00010545,2]
[347620476,1735963843972,-500.0,0.00010545,2]
[347620477,1735963843981,-500.0,0.00010545,2]
[347620479,1735963843990,-579.47,0.00010545,2]
[347620481,1735963844000,-500.0,0.00010545,2]
[347620483,1735963844008,-500.0,0.00010545,2]
[347620485,1735963844017,-1453.26,0.00010545,2]
[347620487,1735963844027,-500.0,0.00010545,2]
[347620489,1735963844036,-500.0,0.00010545,2]
[347620491,1735963844044,-529.63,0.00010545,2]
[347620493,1735963844053,-500.0,0.00010545,2]
[347620495,1735963844062,-500.0,0.00010545,2]
[347620497,1735963844071,-500.0,0.00010545,2]
[347620499,1735963844080,-500.0,0.00010545,2]
[347620501,1735963844088,-500.0,0.00010545,2]
[347620503,1735963844098,-500.0,0.00010545,2]
[347620505,1735963844108,-500.0,0.00010545,2]
[347620507,1735963844117,-500.0,0.00010545,2]
[347620509,1735963844126,-666.63,0.00010545,2]
[347620511,1735963844135,-500.0,0.00010545,2]
[347620513,1735963844144,-500.0,0.00010545,2]
[347620515,1735963844154,-221.8579304,0.00010545,2]
[347620517,1735963844164,-500.0,0.00010545,2]
[347620519,1735963844173,-500.0,0.00010545,2]
[347620521,1735963844183,-500.0,0.00010545,2]
[347620523,1735963844192,-500.0,0.00010545,2]
[347620525,1735963844201,-500.0,0.00010545,2]
[347620527,1735963844211,-314.25892126,0.00010545,2]
[347620529,1735963844219,-581.90467232,0.00010545,2]
[347620531,1735963844229,-500.0,0.00010545,2]
[347620533,1735963844238,-500.0,0.00010545,2]
[347620535,1735963844248,-2076.16,0.00010545,2]
[347620537,1735963844257,-500.0,0.00010545,2]
[347620539,1735963844267,-1004.75,0.00010545,2]
[347620541,1735963844277,-500.0,0.00010545,2]
[347620543,1735963844286,-582.25,0.00010545,2]
[347620545,1735963844296,-536.01603781,0.00010545,2]
[347620547,1735963844305,-519.14,0.00010545,2]
[347620549,1735963844314,-872.27,0.00010545,2]
[347620551,1735963844324,-500.0,0.00010545,2]
[347620553,1735963844334,-500.0,0.00010545,2]
[347620555,1735963844343,-1367.65,0.00010545,2]
[347620557,1735963844352,-500.0,0.00010545,2]
[347620559,1735963844362,-571.01,0.00010545,2]
[347620561,1735963844371,-500.0,0.00010545,2]
[347620563,1735963844380,-500.0,0.00010545,2]
[347620565,1735963844390,-1398.76,0.00010545,2]
[347620567,1735963844399,-500.0,0.00010545,2]
[347620569,1735963844408,-500.0,0.00010545,2]
[347620571,1735963844418,-2041.66,0.00010545,2]
[347620573,1735963844427,-1476.86,0.00010545,2]
[347620575,1735963844436,-504.64,0.00010545,2]
[347620577,1735963844446,-500.0,0.00010545,2]
[347620579,1735963844457,-1040.85,0.00010545,2]
[347620581,1735963844467,-500.0,0.00010545,2]
[347620583,1735963844476,-500.0,0.00010545,2]
[347620585,1735963844486,-500.0,0.00010545,2]
[347620587,1735963844495,-500.0,0.00010545,2]
[347620589,1735963844504,-1769.94,0.00010545,2]
[347620591,1735963844513,-500.0,0.00010545,2]
[347620593,1735963844522,-500.0,0.00010545,2]
[347620595,1735963844531,-875.02,0.00010545,2]
[347620597,1735963844540,-500.0,0.00010545,2]
[347620599,1735963844550,-552.17,0.00010545,2]
[347620601,1735963844559,-500.0,0.00010545,2]
[347620603,1735963844569,-500.0,0.00010545,2]
[347620605,1735963844578,-2008.38,0.00010545,2]
[347620607,1735963844587,-500.0,0.00010545,2]
[347620609,1735963844596,-500.0,0.00010545,2]
[347620611,1735963844606,-500.0,0.00010545,2]
[347620613,1735963844615,-518.32,0.00010545,2]
[347620615,1735963844628,-500.0,0.00010545,2]
[347620617,1735963844637,-7531.39,0.00010545,2]
[347620619,1735963844650,-235.06336827,0.00010545,2]
[347620621,1735963844660,-953.96,0.00010545,2]
[347620623,1735963844669,-500.0,0.00010545,2]
[347620625,1735963844678,-500.0,0.00010545,2]
[347620627,1735963844688,-500.0,0.00010545,2]
[347620629,1735963844699,-845.38,0.00010545,2]
[347620631,1735963844709,-500.0,0.00010545,2]
[347620633,1735963844718,-500.0,0.00010545,2]
[347620635,1735963844727,-2216.69,0.00010545,2]
[347620637,1735963844736,-500.0,0.00010545,2]
[347620639,1735963844745,-500.0,0.00010545,2]
[347620641,1735963844754,-1237.55,0.00010545,2]
[347620643,1735963844763,-500.0,0.00010546,2]
[347620645,1735963844772,-500.0,0.00010546,2]
[347620647,1735963844781,-500.0,0.00010546,2]
[347620649,1735963844790,-500.0,0.00010546,2]
[347620651,1735963844799,-500.0,0.00010546,2]
[347620653,1735963844808,-500.0,0.00010546,2]
[347620655,1735963844818,-500.0,0.00010546,2]
[347620657,1735963844827,-500.0,0.00010546,2]
[347620659,1735963844836,-536.8986322,0.00010546,2]
[347620661,1735963844845,-500.0,0.00010546,2]
[347620663,1735963844854,-1397.05,0.00010546,2]
[347620665,1735963844863,-500.0,0.00010546,2]
[347620667,1735963844872,-500.0,0.00010546,2]
[347620669,1735963844882,-500.0,0.00010546,2]
[347620671,1735963844890,-500.0,0.00010546,2]
[347620673,1735963844899,-500.0,0.00010546,2]
[347620675,1735963844909,-509.42,0.00010546,2]
[347620677,1735963844918,-500.0,0.00010546,2]
[347620679,1735963844928,-660.95,0.00010546,2]
[347620681,1735963844937,-713.79,0.00010546,2]
[347620683,1735963844946,-211.66360947,0.00010546,2]
[347620685,1735963844955,-500.0,0.00010546,2]
[347620687,1735963844964,-500.0,0.00010546,2]
[347620689,1735963844974,-500.0,0.00010546,2]
[347620691,1735963844983,-500.0,0.00010546,2]
[347620693,1735963844992,-500.0,0.00010546,2]
[347620695,1735963845001,-500.0,0.00010546,2]
[347620697,1735963845010,-500.0,0.00010546,2]
[347620699,1735963845019,-500.0,0.00010546,2]
[347620701,1735963845028,-500.0,0.00010546,2]
[347620703,1735963845037,-601.76,0.00010546,2]
[347620705,1735963845047,-712.88,0.00010546,2]
[347620707,1735963845056,-500.0,0.00010546,2]
[347620709,1735963845065,-618.9,0.00010546,2]
[347620711,1735963845074,-500.0,0.00010546,2]
[347620713,1735963845083,-500.0,0.00010546,2]
[347620715,1735963845093,-200.0,0.00010546,2]
[347620717,1735963845102,-500.0,0.00010546,2]
[347620719,1735963845110,-500.0,0.00010546,2]
[347620721,1735963845120,-702.56,0.00010546,2]
[347620723,1735963845129,-500.0,0.00010546,2]
[347620725,1735963845138,-635.24,0.00010546,2]
[347620727,1735963845147,-3000.0,0.00010546,2]
[347620729,1735963845156,-259.52594462,0.00010546,2]
[347620732,1735963845175,-662.57,0.00010546,2]
[347620734,1735963845185,-500.0,0.00010546,2]
[347620736,1735963845195,-500.0,0.00010546,2]
[347620738,1735963845204,-831.57,0.00010546,2]
[347620740,1735963845214,-502.42,0.00010546,2]
[347620742,1735963845223,-500.0,0.00010546,2]
[347620744,1735963845233,-1094.52,0.00010546,2]
[347620746,1735963845243,-2478.1,0.00010546,2]
[347620748,1735963845252,-1324.56938691,0.00010546,2]
[347620771,1735963845457,-87.79061309,0.00010546,2]
[347620773,1735963845467,-485.89806621,0.00010546,2]
[347620775,1735963845479,-1060.61964932,0.00010546,2]
[347620777,1735963845491,-559.54826006,0.00010546,2]
[347620814,1735963845823,-2333.916482,9.696e-05,2]
[347620816,1735963845833,-364.72,0.00010274,2]
[347620818,1735963845842,-500.0,0.00010544,2]
[347620820,1735963845851,-1913.78774085,0.00010546,2]
[347620822,1735963845862,-813.76474553,0.00010546,2]
[347620826,1735963845896,-1858.66153803,0.00010546,2]
[347620828,1735963845906,-2472.98,0.00010546,2]
[347620830,1735963845918,-3853.76,0.00010546,2]
[347620833,1735963845928,-500.0,0.00010546,2]
[347620835,1735963845938,-1061.29,0.00010546,2]
[347620837,1735963845947,-500.0,0.00010546,2]
[347620839,1735963845957,-1457.08,0.00010546,2]
[347620840,1735963845966,-526.4,0.00010546,2]
[347620843,1735963845976,-1829.42,0.00010546,2]
[347620845,1735963845986,-200.0,0.00010546,2]
[347620847,1735963845996,-500.0,0.00010546,2]
[347620848,1735963846005,-500.0,0.00010546,2]
[347620850,1735963846015,-707.06,0.00010546,2]
[347620853,1735963846025,-903.78,0.00010546,2]
[347620855,1735963846034,-4599.24,0.00010546,2]
[347620857,1735963846044,-737.74,0.00010546,2]
[347620859,1735963846053,-3150.98,0.00010546,2]
[347620861,1735963846062,-514.39,0.00010547,2]
[347620863,1735963846071,-500.0,0.00010547,2]
[347620865,1735963846081,-500.0,0.00010547,2]
[347620867,1735963846091,-880.66,0.00010547,2]
[347620869,1735963846100,-763.69,0.00010547,2]
[347620871,1735963846109,-820.43,0.00010547,2]
[347620873,1735963846119,-1000.0,0.00010547,2]
[347620875,1735963846128,-668.54,0.00010547,2]
[347620877,1735963846138,-596.54,0.00010547,2]
[347620879,1735963846148,-1341.63,0.00010547,2]
[347620881,1735963846159,-1007.0,0.000106,2]
[347620883,1735963846168,-200.0,0.00010651,2]
[347620885,1735963846178,-200.0,0.00010651,2]
[347620887,1735963846187,-1116.92657913,0.00010692,2]
[347620889,1735963846196,-1116.92657914,0.00010692,2]
[347620891,1735963846205,-1854.4782,0.0001072,2]
[347620893,1735963846215,-152.69,0.00010771,2]
[347620895,1735963846224,-687.4,0.00010818,2]
[347620897,1735963846233,-726.93,0.00010818,2]
[347620899,1735963846242,-500.0,0.00010818,2]
[347620901,1735963846251,-686.8,0.00010818,2]
[347620903,1735963846260,-867.37,0.00010818,2]
[347620905,1735963846269,-536.34,0.00010818,2]
[347620907,1735963846279,-500.0,0.00010818,2]
[347620908,1735963846288,-684.32,0.00010818,2]
[347620910,1735963846297,-500.0,0.00010818,2]
[347620912,1735963846307,-500.0,0.00010818,2]
[347620914,1735963846316,-500.0,0.00010818,2]
[347620916,1735963846325,-500.0,0.00010819,2]
[347620918,1735963846335,-500.0,0.00010819,2]
[347620921,1735963846344,-500.0,0.00010819,2]
[347620923,1735963846354,-500.0,0.00010819,2]
[347620925,1735963846363,-500.0,0.00010819,2]
[347620927,1735963846373,-649.96356806,0.00010819,2]
[347620928,1735963846382,-500.0,0.00010819,2]
[347620930,1735963846391,-2004.21,0.00010819,2]
[347620932,1735963846400,-500.0,0.00010819,2]
[347620934,1735963846410,-500.0,0.00010819,2]
[347620936,1735963846419,-500.0,0.00010819,2]
[347620937,1735963846428,-500.0,0.00010819,2]
[347620938,1735963846437,-500.0,0.00010819,2]
[347620939,1735963846445,-500.0,0.00010819,2]
[347620940,1735963846454,-500.0,0.00010819,2]
[347620941,1735963846465,-500.0,0.00010819,2]
[347620942,1735963846474,-1273.95,0.00010819,2]
[347620943,1735963846482,-500.0,0.00010819,2]
[347620944,1735963846491,-523.02,0.00010819,2]
[347620945,1735963846500,-500.0,0.00010819,2]
[347620946,1735963846509,-500.0,0.00010819,2]
[347620947,1735963846518,-500.0,0.00010819,2]
[347620949,1735963846527,-500.0,0.00010819,2]
[347620950,1735963846535,-500.0,0.00010819,2]
[347620952,1735963846545,-500.0,0.00010819,2]
[347620954,1735963846554,-500.0,0.00010819,2]
[347620956,1735963846564,-500.0,0.00010819,2]
[347620958,1735963846573,-622.09,0.00010819,2]
[347620960,1735963846582,-500.0,0.00010819,2]
[347620962,1735963846591,-500.0,0.00010819,2]
[347620964,1735963846600,-270.099824,0.00010819,2]
[347620966,1735963846609,-2083.77,0.00010819,2]
[347620968,1735963846621,-500.0,0.00010819,2]
[347620970,1735963846630,-500.0,0.00010819,2]
[347620972,1735963846639,-500.0,0.00010819,2]
[347620974,1735963846648,-500.0,0.00010819,2]
[347620976,1735963846659,-362.034631,0.00010819,2]
[347620978,1735963846668,-201.63144975,0.00010819,2]
[347620980,1735963846678,-500.0,0.00010819,2]
[347620982,1735963846687,-500.0,0.00010819,2]
[347620984,1735963846697,-500.0,0.00010819,2]
[347620986,1735963846708,-500.0,0.00010819,2]
[347620988,1735963846716,-500.0,0.00010819,2]
[347620990,1735963846725,-500.0,0.00010819,2]
[347620992,1735963846735,-579.47,0.00010819,2]
[347620994,1735963846743,-500.0,0.00010819,2]
[347620996,1735963846752,-1453.26,0.00010819,2]
[347620998,1735963846762,-500.0,0.00010819,2]
[347621019,1735963846773,-500.0,0.00010819,2]
[347621022,1735963846967,-529.63,0.00010819,2]
[347621024,1735963846977,-500.0,0.00010819,2]
[347621025,1735963846986,-500.0,0.00010819,2]
[347621027,1735963846995,-500.0,0.00010819,2]
[347621029,1735963847004,-500.0,0.00010819,2]
[347621031,1735963847013,-500.0,0.00010819,2]
[347621033,1735963847023,-500.0,0.00010819,2]
[347621035,1735963847032,-500.0,0.00010819,2]
[347621037,1735963847041,-500.0,0.00010819,2]
[347621039,1735963847050,-666.63,0.00010819,2]
[347621041,1735963847059,-500.0,0.00010819,2]
[347621043,1735963847068,-500.0,0.00010819,2]
[347621045,1735963847077,-500.0,0.00010819,2]
[347621047,1735963847086,-500.0,0.00010819,2]
[347621049,1735963847095,-500.0,0.00010819,2]
[347621051,1735963847104,-500.0,0.00010819,2]
[347621053,1735963847113,-500.0,0.00010819,2]
[347621055,1735963847122,-500.0,0.00010819,2]
[347621057,1735963847132,-500.0,0.00010819,2]
[347621059,1735963847141,-2076.16,0.00010819,2]
[347621061,1735963847150,-500.0,0.00010819,2]
[347621063,1735963847159,-1004.75,0.00010819,2]
[347621065,1735963847167,-500.0,0.00010819,2]
[347621067,1735963847176,-582.25,0.00010819,2]
[347621069,1735963847186,-519.14,0.00010819,2]
[347621071,1735963847195,-872.27,0.00010819,2]
[347621073,1735963847204,-500.0,0.00010819,2]
[347621075,1735963847214,-500.0,0.00010819,2]
[347621077,1735963847223,-1367.65,0.00010819,2]
[347621079,1735963847233,-411.17877558,0.00010819,2]
[347621081,1735963847242,-571.01,0.00010819,2]
[347621083,1735963847251,-500.0,0.00010819,2]
[347621085,1735963847260,-500.0,0.00010819,2]
[347621087,1735963847269,-1398.76,0.00010819,2]
[347621089,1735963847278,-500.0,0.00010819,2]
[347621091,1735963847288,-500.0,0.00010819,2]
[347621093,1735963847297,-2041.66,0.00010819,2]
[347621095,1735963847306,-1476.86,0.00010819,2]
[347621097,1735963847315,-504.64,0.00010819,2]
[347621098,1735963847324,-500.0,0.00010819,2]
[347621100,1735963847333,-1040.85,0.00010819,2]
[347621102,1735963847342,-500.0,0.00010819,2]
[347621104,1735963847351,-500.0,0.00010819,2]
[347621106,1735963847360,-500.0,0.00010819,2]
[347621108,1735963847370,-500.0,0.00010819,2]
[347621110,1735963847379,-1769.94,0.00010819,2]
[347621112,1735963847388,-500.0,0.00010819,2]
[347621114,1735963847397,-500.0,0.00010819,2]
[347621116,1735963847406,-875.02,0.00010819,2]
[347621118,1735963847415,-500.0,0.00010819,2]
[347621120,1735963847425,-552.17,0.00010819,2]
[347621122,1735963847434,-500.0,0.00010819,2]
[347621124,1735963847444,-500.0,0.00010819,2]
[347621126,1735963847453,-2008.38,0.00010819,2]
[347621128,1735963847464,-500.0,0.00010819,2]
[347621130,1735963847473,-500.0,0.00010819,2]
[347621132,1735963847482,-500.0,0.00010819,2]
[347621134,1735963847492,-518.32,0.00010819,2]
[347621136,1735963847501,-500.0,0.00010819,2]
[347621138,1735963847510,-7531.39,0.00010819,2]
[347621140,1735963847519,-953.96,0.00010819,2]
[347621142,1735963847528,-500.0,0.00010819,2]
[347621144,1735963847537,-500.0,0.00010819,2]
[347621146,1735963847546,-500.0,0.00010819,2]
[347621148,1735963847555,-845.38,0.00010819,2]
[347621150,1735963847564,-500.0,0.00010819,2]
[347621152,1735963847573,-500.0,0.00010819,2]
[347621155,1735963847583,-2216.69,0.00010819,2]
[347621157,1735963847594,-500.0,0.00010819,2]
[347621159,1735963847603,-500.0,0.00010819,2]
[347621161,1735963847612,-1237.55,0.00010819,2]
[347621162,1735963847628,-500.0,0.0001082,2]
[347621164,1735963847637,-500.0,0.0001082,2]
[347621167,1735963847647,-500.0,0.0001082,2]
[347621169,1735963847657,-500.0,0.0001082,2]
[347621170,1735963847667,-500.0,0.0001082,2]
[347621173,1735963847678,-500.0,0.0001082,2]
[347621175,1735963847687,-500.0,0.0001082,2]
[347621177,1735963847697,-500.0,0.0001082,2]
[347621179,1735963847706,-1397.05,0.0001082,2]
[347621181,1735963847715,-500.0,0.0001082,2]
[347621182,1735963847724,-543.03940872,0.0001082,2]
[347621185,1735963847733,-500.0,0.0001082,2]
[347621187,1735963847742,-500.0,0.0001082,2]
[347621189,1735963847751,-500.0,0.0001082,2]
[347621191,1735963847760,-509.42,0.0001082,2]
[347621193,1735963847770,-500.0,0.0001082,2]
[347621195,1735963847779,-660.95,0.0001082,2]
[347621197,1735963847787,-713.79,0.0001082,2]
[347621199,1735963847796,-500.0,0.0001082,2]
[347621201,1735963847805,-500.0,0.0001082,2]
[347621203,1735963847815,-500.0,0.0001082,2]
[347621205,1735963847824,-500.0,0.0001082,2]
[347621207,1735963847833,-500.0,0.0001082,2]
[347621209,1735963847842,-500.0,0.0001082,2]
[347621211,1735963847851,-500.0,0.0001082,2]
[347621213,1735963847860,-500.0,0.0001082,2]
[347621215,1735963847869,-500.0,0.0001082,2]
[347621217,1735963847879,-601.76,0.0001082,2]
[347621218,1735963847887,-712.88,0.0001082,2]
[347621220,1735963847896,-500.0,0.0001082,2]
[347621222,1735963847905,-618.9,0.0001082,2]
[347621224,1735963847914,-500.0,0.0001082,2]
[347621226,1735963847923,-500.0,0.0001082,2]
[347621228,1735963847932,-500.0,0.0001082,2]
[347621230,1735963847941,-500.0,0.0001082,2]
[347621232,1735963847950,-702.56,0.0001082,2]
[347621234,1735963847961,-500.0,0.0001082,2]
[347621236,1735963847969,-635.24,0.0001082,2]
[347621238,1735963847978,-662.57,0.0001082,2]
[347621240,1735963847987,-500.0,0.0001082,2]
[347621242,1735963847997,-500.0,0.0001082,2]
[347621244,1735963848006,-831.57,0.0001082,2]
[347621246,1735963848015,-502.42,0.0001082,2]
[347621248,1735963848024,-500.0,0.0001082,2]
[347621250,1735963848033,-2478.1,0.0001082,2]
[347621252,1735963848043,-1412.36,0.0001082,2]
[347621254,1735963848052,-151.0,0.0001082,2]
[347621256,1735963848061,-151.0,0.0001082,2]
[347621258,1735963848070,-151.0,0.0001082,2]
[347621260,1735963848079,-151.0,0.0001082,2]
[347621262,1735963848089,-151.0,0.0001082,2]
[347621264,1735963848098,-151.0,0.0001082,2]
[347621266,1735963848107,-151.0,0.0001082,2]
[347621268,1735963848116,-151.0,0.0001082,2]
[347621270,1735963848125,-151.0,0.0001082,2]
[347621272,1735963848135,-151.0,0.0001082,2]